bitfinex/quotes_BTCUSD_20250219
["timestamp","ask_amount","ask_price","bid_price","bid_amount"]
[1740006111180,0.02315075,97001.0,97000.0,0.16409858]
[1740006111381,0.02315075,97001.0,97000.0,0.10250365]
[1740006111591,0.02328054,97001.0,97000.0,0.23100365]
[1740006111800,0.154515,97078.0,97031.0,0.33032088]
[1740006112004,0.20607825,97082.0,97031.0,0.33032088]
[1740006112005,6.625e-05,97082.0,97056.0,0.10250365]
[1740006112353,0.00103262,97057.0,97056.0,0.10250365]
[1740006112714,0.00103262,97057.0,97047.0,0.33032088]
[1740006113030,0.00103262,97057.0,97056.0,0.11812845]
[1740006113997,0.00103262,97057.0,97036.0,0.0156248]
[1740006114195,0.00103262,97057.0,97014.0,0.0156248]
[1740006114196,0.15,97049.0,97014.0,0.0156248]
[1740006114474,0.16409858,97030.0,96988.0,0.0751]
[1740006114634,0.15,97029.0,97012.0,0.0156248]
[1740006114842,0.0004255,97020.0,97012.0,0.0156248]
[1740006115042,0.0004255,97020.0,97019.0,0.0156248]
[1740006115956,0.0004255,97020.0,97019.0,0.10250365]
[1740006116156,0.00046866,97020.0,97019.0,0.10250365]
[1740006116367,0.00046866,97020.0,96991.0,0.00784]
[1740006116560,0.00046866,97020.0,96992.0,0.10250365]
[1740006116738,0.15,97018.0,96992.0,0.10250365]
[1740006117085,0.15465,96993.0,96992.0,0.10250365]
[1740006117332,0.24529753,97002.0,96971.0,0.0234648]
[1740006117532,0.15,97001.0,96979.0,0.10250365]
[1740006118103,0.15,96989.0,96941.0,0.154732]
[1740006118307,0.15,96979.0,96947.0,0.10250365]
[1740006118579,0.154704,96959.0,96947.0,0.10250365]
[1740006118784,0.0043752,96997.0,96947.0,0.10250365]
[1740006118785,0.15,96969.0,96947.0,0.10250365]
[1740006118988,0.154713,96954.0,96947.0,0.10250365]
[1740006119196,0.154726,96946.0,96940.0,0.0156248]
[1740006119422,0.15,96949.0,96918.0,0.05728]
[1740006119593,0.154737,96939.0,96919.0,0.10250365]
[1740006119888,0.154737,96939.0,96932.0,0.0156248]
[1740006120105,0.154737,96939.0,96919.0,0.10250365]
[1740006120106,4.312e-05,96946.0,96933.0,0.10250365]
[1740006120313,0.154743,96935.0,96933.0,0.10250365]
[1740006120525,4.312e-05,96946.0,96938.0,0.0156248]
[1740006120672,4.312e-05,96946.0,96939.0,0.11812845]
[1740006120880,4.312e-05,96946.0,96939.0,0.10250365]
[1740006121262,4.312e-05,96946.0,96939.0,0.11812845]
[1740006124163,0.15473,96943.0,96939.0,0.11812845]
[1740006124373,4.312e-05,96946.0,96939.0,0.11812845]
[1740006125957,0.00046862,96946.0,96939.0,0.11812845]
[1740006126162,0.00046862,96946.0,96945.0,0.0156248]
[1740006126374,0.00046862,96946.0,96945.0,0.11812845]
[1740006126909,0.24529753,96990.0,96953.0,0.0156248]
[1740006127061,0.02004318,96997.0,96956.0,0.0156248]
[1740006127266,0.02004318,96997.0,96954.0,0.10250365]
[1740006127267,0.01616272,96992.0,96960.0,0.0156248]
[1740006127467,0.154686,96971.0,96961.0,0.10250365]
[1740006127670,0.01616272,96992.0,96961.0,0.10250365]
[1740006127880,0.15,96983.0,96961.0,0.10250365]
[1740006128062,0.01616272,96992.0,96961.0,0.10250365]
[1740006128256,0.01616272,96992.0,96961.0,0.11812845]
[1740006128458,0.206223,96982.0,96961.0,0.11812845]
[1740006128921,0.01616272,96992.0,96961.0,0.11812845]
[1740006129249,0.15,96983.0,96961.0,0.11812845]
[1740006129632,0.206213,96987.0,96967.0,0.0156248]
[1740006129633,0.154661,96987.0,96967.0,0.0156248]
[1740006129898,0.01616272,96992.0,96968.0,0.11812845]
[1740006130103,0.01616272,96992.0,96969.0,0.0156248]
[1740006130274,0.154664,96985.0,96970.0,0.10250365]
[1740006130495,0.15,96984.0,96970.0,0.10250365]
[1740006130669,0.01616272,96992.0,96977.0,0.0156248]
[1740006130872,4.318e-05,96997.0,96980.0,0.0156248]
[1740006131036,4.318e-05,96997.0,96981.0,0.10250365]
[1740006131237,4.318e-05,96997.0,96983.0,0.0156248]
[1740006131536,4.318e-05,96997.0,96970.0,0.24529753]
[1740006131537,4.318e-05,96997.0,96993.0,0.0156248]
[1740006132471,4.318e-05,96997.0,96994.0,0.10250365]
[1740006132679,0.154647,96995.0,96994.0,0.10250365]
[1740006133109,4.318e-05,96997.0,96996.0,0.0156248]
[1740006133323,4.318e-05,96997.0,96996.0,0.11812845]
[1740006133491,4.318e-05,96997.0,96996.0,0.2873143]
[1740006135684,4.318e-05,96997.0,96996.0,0.4373143]
[1740006136307,0.0004249,97043.0,96997.0,0.16454085]
[1740006136488,0.0004249,97043.0,97019.0,0.27273645]
[1740006136685,0.0004249,97043.0,97019.0,0.3425373]
[1740006137201,0.0004249,97043.0,97019.0,0.3358373]
[1740006137401,0.0004249,97043.0,97019.0,0.4159373]
[1740006137584,0.0004249,97043.0,97019.0,0.5659373]
[1740006138993,0.0004249,97043.0,97019.0,0.5859373]
[1740006139977,0.0004249,97043.0,97019.0,0.4023645]
[1740006140161,0.0004249,97043.0,97019.0,0.25344845]
[1740006140498,0.0004249,97043.0,97019.0,0.40805645]
[1740006140631,0.0004249,97043.0,97019.0,0.25344845]
[1740006140831,0.154598,97026.0,97019.0,0.11812845]
[1740006141037,0.1546,97024.0,97019.0,0.11812845]
[1740006141335,0.206116,97033.0,97019.0,0.10250365]
[1740006141540,0.154598,97026.0,97019.0,0.10250365]
[1740006141916,0.154597,97026.0,97019.0,0.11812845]
[1740006142124,0.154601,97024.0,97019.0,0.11812845]
[1740006142553,0.154607,97021.0,97019.0,0.11812845]
[1740006142728,0.154604,97022.0,97019.0,0.10250365]
[1740006142929,0.206129,97027.0,97019.0,0.10250365]
[1740006143135,0.154603,97023.0,97019.0,0.11812845]
[1740006143461,0.154596,97027.0,97019.0,0.11812845]
[1740006143878,0.206111,97036.0,97019.0,0.11812845]
[1740006144082,0.1504249,97043.0,97019.0,0.11812845]
[1740006144282,0.206101,97040.0,97019.0,0.11812845]
[1740006144482,0.1504249,97043.0,97019.0,0.11812845]
[1740006144688,0.3565189,97043.0,97019.0,0.11812845]
[1740006144888,0.206107,97037.0,97019.0,0.11812845]
[1740006145104,0.154587,97033.0,97019.0,0.11812845]
[1740006145308,0.206101,97040.0,97019.0,0.11812845]
[1740006145530,0.154607,97021.0,97019.0,0.10250365]
[1740006146550,0.154607,97021.0,97019.0,0.11812845]
[1740006146754,0.154607,97021.0,97019.0,0.10250365]
[1740006148254,0.1500325,97021.0,97019.0,0.10246365]
[1740006148408,0.15462,97012.0,97009.0,0.0156248]
[1740006148610,0.154621,97011.0,97010.0,0.10250365]
[1740006149063,0.206153,97016.0,96993.0,0.00824]
[1740006149262,0.15,97027.0,96994.0,0.10250365]
[1740006149485,0.15,97027.0,96993.0,0.00824]
[1740006149486,0.15,96995.0,96990.0,0.00012979]
[1740006149692,0.154653,96991.0,96990.0,0.00012979]
[1740006150456,0.304653,96991.0,96990.0,0.00012979]
[1740006150869,0.31739881,96991.0,96990.0,0.00012979]
[1740006151082,0.304653,96991.0,96990.0,0.00012979]
[1740006152153,0.154713,96954.0,96948.0,0.29439459]
[1740006152333,0.15,96979.0,96949.0,0.10250365]
[1740006152976,0.08245765,97048.0,96949.0,0.10250365]
[1740006152977,0.01616172,96989.0,96969.0,0.24529753]
[1740006153170,0.20617,97008.0,96972.0,0.204244]
[1740006153329,0.15,96996.0,96973.0,0.154682]
[1740006153530,0.15,96996.0,96967.0,0.10250365]
[1740006153729,0.0466,97017.0,96970.0,0.0783]
[1740006153730,0.24529753,97010.0,96970.0,0.0783]
[1740006153956,0.15,96989.0,96970.0,0.10250365]
[1740006154129,0.15468,96974.0,96970.0,0.10250365]
[1740006154348,0.15,96990.0,96970.0,0.10250365]
[1740006154602,0.154632,97005.0,96971.0,0.10250365]
[1740006154791,0.24572233,97020.0,96971.0,0.10250365]
[1740006154991,0.24572233,97020.0,96972.0,0.29439459]
[1740006155248,0.24529753,97010.0,96973.0,0.10250365]
[1740006155415,0.154662,96986.0,96973.0,0.10250365]
[1740006155628,0.15,97007.0,96974.0,0.29439459]
[1740006155763,0.154676,96977.0,96975.0,0.10250365]
[1740006155962,0.154671,96980.0,96975.0,0.10250365]
[1740006156170,0.154666,96983.0,96975.0,0.10250365]
[1740006156371,0.15,97003.0,96975.0,0.10250365]
[1740006156838,0.154677,96977.0,96975.0,0.10250365]
[1740006157858,0.154677,96976.0,96975.0,0.10250365]
[1740006158207,0.154676,96977.0,96975.0,0.10250365]
[1740006158408,0.15,96980.0,96975.0,0.10250365]
[1740006159033,0.154676,96977.0,96975.0,0.10250365]
[1740006159258,0.20623,96979.0,96975.0,0.10250365]
[1740006159452,0.206178,97004.0,96975.0,0.10250365]
[1740006159655,0.206156,97014.0,96975.0,0.10250365]
[1740006159835,0.15,97012.0,96975.0,0.10250365]
[1740006160018,0.356197,96995.0,96975.0,0.10250365]
[1740006160218,0.15,96995.0,96975.0,0.10250365]
[1740006160424,0.154672,96979.0,96975.0,0.10250365]
[1740006160639,0.15,96995.0,96975.0,0.10250365]
[1740006160842,0.15,96997.0,96975.0,0.10250365]
[1740006161037,0.154672,96979.0,96975.0,0.10250365]
[1740006161268,0.15,96997.0,96975.0,0.10250365]
[1740006161487,0.15,96989.0,96955.0,0.00828]
[1740006161770,0.154707,96957.0,96956.0,0.10250365]
[1740006162356,0.15,96979.0,96956.0,0.10250365]
[1740006162564,0.154701,96962.0,96956.0,0.10250365]
[1740006162779,0.206263,96964.0,96956.0,0.10250365]
[1740006162978,0.15,96982.0,96956.0,0.10250365]
[1740006162979,0.154703,96960.0,96956.0,0.10250365]
[1740006163186,0.154705,96959.0,96956.0,0.10250365]
[1740006163433,0.15,96987.0,96956.0,0.10250365]
[1740006163761,0.206215,96986.0,96956.0,0.10250365]
[1740006163965,0.0004251,96995.0,96956.0,0.10250365]
[1740006164160,0.206243,96973.0,96956.0,0.10250365]
[1740006164369,0.0004251,96995.0,96956.0,0.10250365]
[1740006164607,0.0004251,96995.0,96957.0,0.206277]
[1740006164813,0.0004251,96995.0,96958.0,0.10250365]
[1740006165028,0.15,96993.0,96958.0,0.10250365]
[1740006165372,0.154686,96971.0,96958.0,0.10250365]
[1740006165772,0.06019206,96993.0,96958.0,0.10250365]
[1740006165973,0.15,96991.0,96958.0,0.10250365]
[1740006166218,0.154686,96971.0,96958.0,0.10250365]
[1740006166391,0.206243,96973.0,96958.0,0.10250365]
[1740006166594,0.154686,96971.0,96958.0,0.25720965]
[1740006167259,0.154686,96971.0,96958.0,0.10250365]
[1740006167394,0.154687,96970.0,96958.0,0.10250365]
[1740006167592,0.15,96999.0,96958.0,0.10250365]
[1740006167821,0.154678,96976.0,96958.0,0.10250365]
[1740006168024,0.154678,96976.0,96961.0,0.1547]
[1740006168232,0.154678,96976.0,96962.0,0.25720265]
[1740006168435,0.206228,96980.0,96962.0,0.25720265]
[1740006168639,0.15,96981.0,96962.0,0.10250365]
[1740006168857,0.154674,96978.0,96962.0,0.25720265]
[1740006169097,0.0004251,96995.0,96962.0,0.10250365]
[1740006169297,0.154667,96983.0,96962.0,0.10250365]
[1740006169607,0.0004251,96995.0,96962.0,0.10250365]
[1740006170098,0.0004251,96995.0,96963.0,0.154698]
[1740006170255,0.154675,96978.0,96964.0,0.10250365]
[1740006170681,0.154679,96975.0,96964.0,0.10250365]
[1740006171002,0.15,96993.0,96964.0,0.10250365]
[1740006171203,0.154679,96975.0,96964.0,0.10250365]
[1740006171433,0.206234,96977.0,96964.0,0.10250365]
[1740006171561,0.154681,96974.0,96964.0,0.10250365]
[1740006172008,0.206237,96976.0,96964.0,0.10250365]
[1740006172215,0.15468,96975.0,96964.0,0.10250365]
[1740006172417,0.154681,96974.0,96964.0,0.10250365]
[1740006173497,0.206237,96976.0,96964.0,0.10250365]
[1740006173667,0.154679,96975.0,96964.0,0.10250365]
[1740006173866,0.154684,96972.0,96964.0,0.10250365]
[1740006174108,0.154678,96976.0,96964.0,0.10250365]
[1740006174747,0.206232,96978.0,96964.0,0.10250365]
[1740006174946,0.154678,96976.0,96964.0,0.25719965]
[1740006175159,0.206232,96978.0,96964.0,0.10250365]
[1740006175316,0.154679,96975.0,96964.0,0.10250365]
[1740006175517,0.206232,96978.0,96964.0,0.10250365]
[1740006175718,0.154677,96976.0,96964.0,0.10250365]
[1740006176423,0.154676,96977.0,96964.0,0.10250365]
[1740006176599,0.206232,96978.0,96965.0,0.154694]
[1740006176801,0.155095,96981.0,96966.0,0.25719665]
[1740006177010,0.154673,96979.0,96966.0,0.10250365]
[1740006177432,0.154678,96976.0,96966.0,0.10250365]
[1740006178455,0.206232,96978.0,96967.0,0.154691]
[1740006178676,0.154675,96977.0,96968.0,0.10250365]
[1740006178897,0.154677,96976.0,96968.0,0.10250365]
[1740006179867,0.154676,96977.0,96968.0,0.25719265]
[1740006180259,0.206231,96979.0,96968.0,0.10250365]
[1740006180460,0.000425,96981.0,96968.0,0.10250365]
[1740006180664,0.000425,96981.0,96958.0,0.00085]
[1740006180665,0.154704,96959.0,96958.0,0.00085]
[1740006180887,0.304704,96959.0,96958.0,0.00085]
[1740006181814,0.15,96959.0,96958.0,0.00085]
[1740006182011,0.08245765,96980.0,96958.0,0.00085]
[1740006182012,0.000425,96981.0,96958.0,0.00085]
[1740006182154,0.24529753,96980.0,96958.0,0.00085]
[1740006182358,0.000425,96981.0,96958.0,0.00085]
[1740006182359,0.154704,96959.0,96958.0,0.00085]
[1740006183599,0.304704,96959.0,96958.0,0.00085]
[1740006186934,0.206208,96989.0,96958.0,0.00085]
[1740006187118,0.206208,96989.0,96958.0,0.10335365]
[1740006187317,0.206228,96980.0,96958.0,0.10335365]
[1740006187521,0.154704,96959.0,96958.0,0.10335365]
[1740006187884,0.15,96978.0,96958.0,0.10335365]
[1740006188226,0.206236,96976.0,96959.0,0.17810365]
[1740006188430,0.154702,96960.0,96959.0,0.17810365]
[1740006188659,0.154702,96960.0,96959.0,0.10250365]
[1740006188864,0.15,96979.0,96959.0,0.10250365]
[1740006189067,0.15,96978.0,96959.0,0.10250365]
[1740006189293,0.206651,96981.0,96959.0,0.10250365]
[1740006189294,0.000425,96981.0,96959.0,0.10250365]
[1740006189503,0.000425,96981.0,96961.0,0.1547]
[1740006189701,0.206228,96980.0,96962.0,0.25720165]
[1740006189912,0.000425,96970.0,96962.0,0.10250365]
[1740006190119,0.206251,96969.0,96962.0,0.10250365]
[1740006190326,0.154691,96968.0,96962.0,0.10250365]
[1740006190523,0.000425,96970.0,96962.0,0.10250365]
[1740006190737,0.154689,96969.0,96962.0,0.10250365]
[1740006190866,0.000425,96970.0,96962.0,0.10250365]
[1740006191068,0.000425,96970.0,96964.0,0.154695]
[1740006191265,0.000425,96970.0,96965.0,0.10250365]
[1740006191852,0.000425,96970.0,96969.0,0.154688]
[1740006192054,0.000425,96970.0,96969.0,0.10250365]
[1740006194834,0.000425,96970.0,96969.0,0.25719165]
[1740006194999,0.000425,96970.0,96969.0,0.10250365]
[1740006195199,0.000425,96970.0,96969.0,0.55158624]
[1740006195421,0.000425,96970.0,96969.0,0.39689824]
[1740006196416,0.000425,96970.0,96969.0,0.55158624]
[1740006196961,0.000425,96970.0,96969.0,0.63138624]
[1740006197164,0.000425,96970.0,96969.0,1.18932709]
[1740006197318,0.000425,96970.0,96969.0,1.41991748]
[1740006198274,0.000425,96981.0,96980.0,0.154671]
[1740006198493,0.000425,96981.0,96980.0,1.18931009]
[1740006198694,0.000425,96981.0,96980.0,0.94029824]
[1740006198887,0.155094,96981.0,96980.0,0.29439459]
[1740006199116,0.206228,96980.0,96964.0,0.29439459]
[1740006199326,0.154693,96966.0,96965.0,0.10250365]
[1740006199473,0.154693,96966.0,96964.0,0.29443777]
[1740006199712,0.154694,96965.0,96964.0,0.29443777]
[1740006200077,0.154694,96965.0,96964.0,4.318e-05]
[1740006200491,0.304694,96965.0,96964.0,4.318e-05]
[1740006200940,0.24543149,96980.0,96964.0,4.318e-05]
[1740006201307,0.154681,96974.0,96964.0,0.10254683]
[1740006201489,0.2066221,96995.0,96964.0,0.10254683]
[1740006201490,0.15,96994.0,96964.0,0.10254683]
[1740006201681,0.15,96989.0,96964.0,0.10254683]
[1740006201826,0.15,96979.0,96964.0,0.10254683]
[1740006202231,0.154694,96965.0,96964.0,0.10254683]
[1740006202677,0.154694,96965.0,96964.0,4.318e-05]
[1740006202847,0.304694,96965.0,96964.0,0.00089318]
[1740006208376,0.32085775,96965.0,96964.0,0.00089318]
[1740006208777,0.50148807,96965.0,96964.0,0.00089318]
[1740006208979,0.4233614,96965.0,96964.0,1.8e-07]
[1740006209361,0.2686674,96965.0,96958.0,0.00081018]
[1740006209519,0.304704,96959.0,96958.0,0.00081018]
[1740006214597,0.40720765,96959.0,96958.0,1.8e-07]
[1740006214933,0.5097113,96959.0,96958.0,1.8e-07]
[1740006215536,0.40720765,96959.0,96958.0,1.8e-07]
[1740006217016,0.42337312,96959.0,96958.0,1.8e-07]
[1740006217261,0.32086947,96959.0,96958.0,1.8e-07]
[1740006223883,0.304704,96959.0,96958.0,1.8e-07]
[1740006225795,0.206245,96972.0,96958.0,1.8e-07]
[1740006226014,0.154704,96959.0,96958.0,1.8e-07]
[1740006226211,0.304704,96959.0,96958.0,1.8e-07]
[1740006226869,0.32086866,96959.0,96958.0,1.8e-07]
[1740006234021,0.304704,96959.0,96958.0,1.8e-07]
[1740006237169,0.3208687,96959.0,96958.0,1.8e-07]
[1740006239424,0.3212937,96959.0,96958.0,1.8e-07]
[1740006241003,0.42379735,96959.0,96958.0,1.8e-07]
[1740006241547,0.44315517,96959.0,96958.0,1.8e-07]
[1740006242657,0.42379735,96959.0,96958.0,1.8e-07]
[1740006243873,0.40763265,96959.0,96958.0,1.8e-07]
[1740006245817,0.305129,96959.0,96958.0,1.8e-07]
[1740006247050,0.32129478,96959.0,96958.0,1.8e-07]
[1740006247205,0.38731144,96959.0,96958.0,1.8e-07]
[1740006247407,0.48981509,96959.0,96958.0,1.8e-07]
[1740006248038,0.32129478,96959.0,96958.0,1.8e-07]
[1740006251074,0.42379843,96959.0,96958.0,1.8e-07]
[1740006252343,0.32129478,96959.0,96958.0,1.8e-07]
[1740006254111,0.40763265,96959.0,96958.0,1.8e-07]
[1740006256795,0.40763265,96959.0,96948.0,3.8e-07]
[1740006256796,0.30472,96949.0,96948.0,3.8e-07]
[1740006262587,0.50119806,96949.0,96948.0,3.8e-07]
[1740006262774,0.30472,96949.0,96948.0,3.8e-07]
[1740006269538,0.15472,96949.0,96948.0,3.8e-07]
[1740006269971,0.01616543,96961.0,96948.0,3.8e-07]
[1740006270189,0.154702,96961.0,96950.0,0.08245765]
[1740006270388,0.000425,96964.0,96958.0,0.154706]
[1740006270545,0.000425,96964.0,96958.0,0.18110365]
[1740006270744,0.000425,96964.0,96958.0,0.22620365]
[1740006270970,0.155122,96964.0,96958.0,0.22620365]
[1740006271315,0.000425,96964.0,96958.0,0.22620365]
[1740006271513,0.154699,96963.0,96958.0,0.22620365]
[1740006271741,0.154703,96960.0,96958.0,0.22620365]
[1740006271880,0.154699,96963.0,96958.0,0.22620365]
[1740006271881,0.155129,96959.0,96958.0,0.22620365]
[1740006272077,0.000425,96959.0,96958.0,0.22620365]
[1740006274117,0.000425,96959.0,96958.0,0.52059824]
[1740006276754,0.155129,96959.0,96958.0,0.52059824]
[1740006278145,0.000425,96959.0,96958.0,0.52059824]
[1740006278346,0.000425,96959.0,96958.0,0.67530424]
[1740006280738,0.000425,96964.0,96963.0,0.154698]
[1740006280938,0.000425,96964.0,96963.0,0.4655593]
[1740006281145,0.000425,96964.0,96963.0,0.48010015]
[1740006281558,0.000425,96964.0,96963.0,0.63010015]
[1740006281784,0.00053177,96970.0,96969.0,0.44482885]
[1740006281929,0.00053177,96970.0,96969.0,0.5473325]
[1740006282142,0.00053177,96970.0,96969.0,0.2426445]
[1740006282319,0.00053177,96970.0,96969.0,0.22810365]
[1740006283094,0.00053177,96970.0,96969.0,0.38279165]
[1740006283312,0.00053177,96970.0,96969.0,0.22810365]
[1740006284511,0.00053177,96970.0,96969.0,0.38279165]
[1740006285068,0.00053177,96970.0,96969.0,0.4054125]
[1740006285290,0.00053177,96970.0,96969.0,0.3973325]
[1740006285487,0.00053177,96970.0,96969.0,0.22810365]
[1740006286092,0.15521877,96970.0,96969.0,0.1256]
[1740006286316,0.00053177,96970.0,96957.0,0.0787]
[1740006286570,0.154695,96965.0,96958.0,0.10250365]
[1740006286792,0.00053177,96970.0,96958.0,0.10250365]
[1740006287655,0.154704,96959.0,96957.0,0.0787]
[1740006287833,0.16431559,96970.0,96950.0,0.000851]
[1740006287834,0.154717,96951.0,96950.0,0.000851]
[1740006288040,0.154717,96951.0,96950.0,0.10335465]
[1740006288714,0.154717,96951.0,96950.0,0.000851]
[1740006289768,0.154709,96956.0,96950.0,0.10335465]
[1740006290017,0.154711,96955.0,96951.0,0.10250365]
[1740006290254,0.206268,96962.0,96951.0,0.10250365]
[1740006290457,0.000425,96981.0,96951.0,0.10250365]
[1740006290676,0.206265,96963.0,96951.0,0.10250365]
[1740006290860,0.154703,96960.0,96951.0,0.10250365]
[1740006291066,0.15,96973.0,96951.0,0.10250365]
[1740006291276,0.206251,96969.0,96951.0,0.10250365]
[1740006291577,0.15,96980.0,96952.0,0.0787]
[1740006291792,0.20678177,96970.0,96953.0,0.10250365]
[1740006291987,0.154694,96966.0,96954.0,0.29439459]
[1740006292160,0.00053177,96970.0,96955.0,0.10250365]
[1740006292362,0.00053177,96970.0,96960.0,0.16378382]
[1740006292565,0.00053177,96970.0,96961.0,0.10250365]
[1740006293567,0.15469,96968.0,96961.0,0.10250365]
[1740006293963,0.00053177,96970.0,96961.0,0.10250365]
[1740006294374,0.15469,96969.0,96961.0,0.10250365]
[1740006294577,0.15469,96968.0,96961.0,0.10250365]
[1740006295362,0.154695,96965.0,96961.0,0.10250365]
[1740006295561,0.154693,96967.0,96961.0,0.10250365]
[1740006295764,0.154697,96964.0,96961.0,0.10250365]
[1740006295937,0.00053177,96970.0,96961.0,0.10250365]
[1740006296140,0.154688,96969.0,96961.0,0.10250365]
[1740006296344,0.00053177,96970.0,96961.0,0.10250365]
[1740006296552,0.154699,96962.0,96961.0,0.10250365]
[1740006297200,0.15471,96955.0,96954.0,0.29439459]
[1740006297955,0.00053177,96970.0,96964.0,0.0798]
[1740006298172,0.154693,96966.0,96965.0,0.10250365]
[1740006298884,0.00053177,96970.0,96965.0,0.10250365]
[1740006299394,0.15469,96968.0,96965.0,0.10250365]
[1740006299618,0.154692,96967.0,96965.0,0.10250365]
[1740006300074,0.154693,96966.0,96965.0,0.10250365]
[1740006301491,0.154688,96969.0,96965.0,0.10250365]
[1740006301761,0.154693,96966.0,96965.0,0.10250365]
[1740006302320,0.206255,96968.0,96961.0,0.000851]
[1740006302523,0.154699,96962.0,96961.0,0.000851]
[1740006302849,0.154699,96963.0,96961.0,0.000851]
[1740006303021,0.20678077,96970.0,96962.0,0.10250365]
[1740006303205,0.206251,96969.0,96962.0,0.10250365]
[1740006303408,0.00053177,96970.0,96962.0,0.10250365]
[1740006303980,0.206251,96969.0,96962.0,0.10250365]
[1740006304186,0.00053177,96970.0,96962.0,0.10250365]
[1740006304504,0.154698,96963.0,96962.0,0.10250365]
[1740006304708,0.154696,96964.0,96962.0,0.10250365]
[1740006304903,0.206253,96968.0,96962.0,0.10250365]
[1740006305106,0.154698,96963.0,96962.0,0.10250365]
[1740006305316,0.00053177,96970.0,96962.0,0.10250365]
[1740006305731,0.20678177,96970.0,96962.0,0.10250365]
[1740006306089,0.00053177,96970.0,96962.0,0.10250365]
[1740006306247,0.00053177,96970.0,96969.0,0.154688]
[1740006306450,0.00053177,96970.0,96969.0,0.33499165]
[1740006306695,0.00053177,96970.0,96969.0,0.18030365]
[1740006307103,0.00053177,96970.0,96969.0,0.1948445]
[1740006307315,0.00053177,96970.0,96969.0,0.18030365]
[1740006310183,0.154694,96965.0,96964.0,0.000851]
[1740006310411,0.154694,96965.0,96964.0,0.10335465]
[1740006312356,0.154694,96965.0,96964.0,0.000851]
[1740006312578,0.304694,96965.0,96964.0,0.000851]
[1740006314902,0.304694,96965.0,96963.0,0.29439459]
[1740006315119,0.304694,96965.0,96963.0,0.29364559]
[1740006315839,0.154699,96962.0,96961.0,0.000851]
[1740006316749,0.304699,96962.0,96961.0,0.000851]
[1740006318894,0.15,96962.0,96961.0,0.000851]
[1740006319105,0.154699,96962.0,96961.0,0.000851]
[1740006326277,0.40720265,96962.0,96961.0,0.000851]
[1740006326996,0.5097063,96962.0,96961.0,1e-06]
[1740006327423,0.30472,96949.0,96925.0,0.29364559]
[1740006327628,0.30472,96949.0,96913.0,0.0473]
[1740006327629,0.40722365,96949.0,96913.0,0.0473]
[1740006327834,0.49002365,96949.0,96911.0,0.0788]
[1740006328041,0.51769244,96949.0,96911.0,0.0788]
[1740006329873,0.43489244,96949.0,96911.0,0.0788]
[1740006330336,0.43489244,96949.0,96912.0,0.154779]
[1740006330474,0.43489244,96949.0,96911.0,0.233579]
[1740006330676,0.43489244,96949.0,96911.0,0.0788]
[1740006332432,0.44246731,96949.0,96911.0,0.0788]
[1740006334070,0.42630085,96949.0,96911.0,0.0788]
[1740006339146,0.42630085,96949.0,96932.0,0.0775]
[1740006339922,0.42630085,96949.0,96928.0,0.0499]
[1740006340683,0.58560543,96949.0,96915.0,0.1274]
[1740006341301,0.42630085,96949.0,96915.0,0.1274]
[1740006341644,0.3237972,96949.0,96922.0,0.154762]
[1740006341785,0.3237972,96949.0,96921.0,0.08245765]
[1740006342200,0.3237972,96949.0,96936.0,0.0766]
[1740006342615,0.00757487,96949.0,96942.0,0.0485]
[1740006343022,0.154713,96954.0,96949.0,0.0766]
[1740006343261,0.00053177,96970.0,96949.0,0.0766]
[1740006343461,0.154718,96950.0,96949.0,0.0766]
[1740006343874,0.16223696,96950.0,96949.0,0.0766]
[1740006344747,0.15472,96949.0,96942.0,0.0485]
[1740006344973,0.1622418,96949.0,96942.0,0.0485]
[1740006345196,0.1622418,96949.0,96939.0,0.0781492]
[1740006345406,0.1622418,96949.0,96939.0,0.0008492]
[1740006354920,0.0075218,96949.0,96939.0,0.0008492]
[1740006355272,0.15472,96949.0,96939.0,0.0008492]
[1740006355485,0.1622253,96949.0,96939.0,0.0008492]
[1740006356799,0.1626509,96949.0,96939.0,0.0008492]
[1740006366291,0.0079309,96949.0,96948.0,0.07590038]
[1740006366648,0.1551456,96949.0,96948.0,0.07590038]
[1740006366857,0.16185761,96949.0,96948.0,0.07590038]
[1740006367501,0.16185761,96949.0,96948.0,3.8e-07]
[1740006369768,0.16185761,96949.0,96948.0,0.30662603]
[1740006369769,0.00713761,96949.0,96948.0,0.30662603]
[1740006370016,0.0004256,96949.0,96948.0,0.22830403]
[1740006370150,0.00714027,96949.0,96948.0,0.22830403]
[1740006370352,0.0004256,96949.0,96948.0,0.22830403]
[1740006371402,0.0071394,96949.0,96948.0,0.22830403]
[1740006371731,0.0004256,96949.0,96948.0,0.22830403]
[1740006371928,0.0071394,96949.0,96948.0,0.22830403]
[1740006372579,0.0004256,96949.0,96948.0,0.22830403]
[1740006373949,0.0071394,96949.0,96948.0,0.22830403]
[1740006374368,0.0071394,96949.0,96948.0,0.24750537]
[1740006375164,0.0004256,96949.0,96948.0,0.24750537]
[1740006375567,0.0004256,96949.0,96948.0,0.40222737]
[1740006375770,0.0004256,96949.0,96948.0,0.38302603]
[1740006377022,0.0004256,96949.0,96948.0,0.22830403]
[1740006378054,0.0004256,96949.0,96948.0,0.38302603]
[1740006378293,0.0004256,96949.0,96948.0,0.22830403]
[1740006378710,0.0071394,96949.0,96948.0,0.22830403]
[1740006378914,0.0004256,96949.0,96948.0,0.22830403]
[1740006379116,0.0071394,96949.0,96948.0,0.22830403]
[1740006379328,0.0004256,96949.0,96948.0,0.22830403]
[1740006379536,0.0071394,96949.0,96948.0,0.22830403]
[1740006379745,0.0004256,96949.0,96948.0,0.22830403]
[1740006381481,0.0004256,96949.0,96948.0,0.38302603]
[1740006381693,0.0004256,96949.0,96948.0,0.22830403]
[1740006382714,0.0004256,96949.0,96948.0,0.10250403]
[1740006382940,0.00714142,96949.0,96948.0,0.10250403]
[1740006383148,0.0004256,96949.0,96948.0,0.10250403]
[1740006383356,0.00714142,96949.0,96948.0,0.10250403]
[1740006383511,0.0004256,96949.0,96948.0,0.10250403]
[1740006383924,0.00714142,96949.0,96948.0,0.10250403]
[1740006384120,0.1551456,96949.0,96948.0,0.10250403]
[1740006384328,0.16186142,96949.0,96948.0,0.10250403]
[1740006384817,0.16186142,96949.0,96948.0,3.8e-07]
[1740006394284,0.31186142,96949.0,96948.0,3.8e-07]
[1740006397755,0.00714142,96949.0,96948.0,3.8e-07]
[1740006398176,0.00714142,96949.0,96948.0,0.10250403]
[1740006398177,0.0004256,96949.0,96948.0,0.10250403]
[1740006399219,0.1618566,96949.0,96948.0,0.10250403]
[1740006414264,0.1618566,96949.0,96948.0,3.8e-07]
[1740006422315,0.3118566,96949.0,96948.0,3.8e-07]